Cogmind - Beta 14 @@@ ROGUE MODE // 2024.10.10 @ 17:09:58 Player: EgorIV Result: Core destroyed Performance ------------- Evolutions (3) 1500 Regions Visited (7) 1400 Robots Destroyed (63) 315 Value Destroyed (1983) 1983 Prototype IDs (11) 220 Alien Tech Used (0) 0 Bonus (700) 700 TOTAL SCORE: 6118 Bonus ------- Entered Garrisons 200 Used RIF Installer 500 Cogmind --------- Core Integrity 0/700 Matter 236/300 Energy 24/100 System Corruption 7% Temperature Cool (0) Movement Core (50) Location -7/Factory Parts ------- > --- POWER (2) -------- (None) > --- PROPULSION (4) --- (None) > --- UTILITY (3) ------ Improved Cooling System Improved Targeting Computer Hacking Suite > --- WEAPON (4) ------- (None) > --- INVENTORY (5) ---- Sensor Array Armor Integrity Analyzer Advanced ECM Suite Gatling Laser Remote Datajack Peak State ------------ > --- POWER ------------ Reinforced Ion Engine Improved Deuterium Engine > --- PROPULSION ------- VSS Leg VSS Leg Armored Huge Wheel > --- UTILITY ---------- Improved Cooling System Improved Targeting Computer Hacking Suite > --- WEAPON ----------- Arc Projector Precision Shock Rifle Cooled Pulse Rifle Heavy Missile Launcher > --- INVENTORY -------- Improved Deuterium Engine Titanium Leg Sensor Array Advanced ECM Suite Improved Light Armor Plating [Rating: 48] Favorites ----------- Power Enhanced Nuclear Core Engine Reinforced Ion Engine Power Core Enhanced Nuclear Core Propulsion Wheel Treads Light Treads Leg VSS Leg Wheel Wheel Hover Unit Hover Unit Utility Improved Targeting Computer Device Improved Heat Sink Processor Improved Targeting Computer Hackware Hacking Suite Protection Improved Light Armor Plating Weapon Precision Beam Rifle Energy Gun Precision Beam Rifle Energy Cannon Ion Cannon Ballistic Gun Shotgun Launcher Heavy Missile Launcher Special Weapon Remote Datajack Build | -11 -10 -9 -9 -8 -7 -7 -7 ------- Run | Yrd Mat Mat Min Mat Fac Gar Fac Slots Evolved 6 | . . 2 . 2 2 . . Power 1 | . . 1 . . . . . Propulsion 2 | . . . . . 2 . . Utility 1 | . . . . 1 . . . Weapon 2 | . . 1 . 1 . . . Parts Attached 95 | 5 2 26 2 25 20 5 10 Power 18 | 1 . 5 . 4 7 . 1 Engine 14 | 1 . 5 . 2 5 . 1 Core 4 | . . . . 2 2 . . Reactor . | . . . . . . . . Propulsion 27 | 2 . 7 . 7 8 . 3 Treads 1 | . . 1 . . . . . Leg 7 | . . . . 2 5 . . Wheel 17 | 2 . 5 . 5 3 . 2 Hover 2 | . . 1 . . . . 1 Flight . | . . . . . . . . Utility 23 | . 2 6 1 5 2 3 4 Device 16 | . 2 3 1 3 1 2 4 Storage . | . . . . . . . . Processor 1 | . . . . 1 . . . Hackware 1 | . . . . 1 . . . Protection 5 | . . 3 . . 1 1 . Artifact . | . . . . . . . . Weapon 27 | 2 . 8 1 9 3 2 2 Energy Gun 16 | 1 . 6 . 5 3 . 1 Energy Cannon 2 | . . 1 . 1 . . . Ballistic Gun 6 | 1 . 1 1 1 . 2 . Ballistic Cannon . | . . . . . . . . Launcher 2 | . . . . 2 . . . Special Weapon 1 | . . . . . . . 1 Impact Weapon . | . . . . . . . . Slashing Weapon . | . . . . . . . . Piercing Weapon . | . . . . . . . . Special Melee Weapon . | . . . . . . . . Unidentified Prototypes 9 | . . 3 . 3 3 . . Parts Lost 23 | . 1 7 . 2 4 5 4 Power 6 | . . 2 . 1 1 . 2 Propulsion 6 | . 1 2 . . 1 . 2 Utility 3 | . . 1 . 1 . 1 . Weapon 8 | . . 2 . . 2 4 . Highest Loss Streak 4 | . 1 4 . 2 2 4 4 To Critical Strikes . | . . . . . . . . Average Slot Usage (%) 81 | . 80 84 100 99 77 69 42 Engine 10 | . 14 19 22 10 8 . 1 Core 5 | . . . . 7 6 15 9 Leg 1 | . . . . . 6 . . Wheel 14 | . 27 12 22 17 11 15 7 Device 6 | . 10 11 11 6 3 3 7 Processor 5 | . . . . 9 7 7 7 Hackware 5 | . . . . 8 7 7 7 Protection 4 | . . 10 11 2 3 4 . Energy Gun 15 | . 14 21 11 18 15 9 . Energy Cannon 1 | . . . . 4 . . . Ballistic Gun 5 | . 14 3 22 9 . 5 . Launcher 1 | . . . . 3 3 . . Peak Build Rating 48 | 5 7 22 19 33 48 45 36 Average Rating 28 | 2 5 17 18 29 43 43 24 On Entrance 19 | . 5 6 15 19 33 45 36 Naked Turns . | . . . . . . . . Heaviest Build 41 | 8 10 22 22 37 41 30 19 Greatest Support 56 | 26 26 26 20 32 56 56 56 Greatest Overweight (x) 5 | . . 4 1 1 3 . 5 Average Overweight (x) . | . . . 1 1 . . . Largest Inventory Capacity 5 | 5 5 5 5 5 5 5 5 Average Capacity 5 | 5 5 5 5 5 5 5 5 Most Carried 5 | 2 5 5 5 5 5 5 5 Average Carried 4 | . 1 4 4 4 4 4 4 Final Capacity 5 | 5 5 5 5 5 5 5 5 Final Carried 5 | . 4 4 5 5 5 4 5 Class Distribution -------------------- 34% | Mutant 30% | Scavenger-Gunner 13% | Gunner 10% | Scavenger-Mutant 8% | Scavenger-Tank Dominant Class ---------------- Mutant | -10/Materials Scavenger-Mutant | -9/Materials Scavenger-Tank | -9/Mines Scavenger-Gunner | -8/Materials Mutant | -7/Factory Gunner | -7/Garrison Mutant | -7/Factory Resources | -11 -10 -9 -9 -8 -7 -7 -7 ----------- Run | Yrd Mat Mat Min Mat Fac Gar Fac Matter Collected 1532 | 108 114 335 48 593 257 27 50 Remotely . | . . . . . . . . Salvage Created 2284 | . 159 600 114 881 398 82 50 Parts 143 | . 10 41 5 50 24 8 5 Haulers Intercepted 1 | . . 1 . . . . . Recyclers Shooed 2 | . . . . 1 1 . . Parts Field Recycled . | . . . . . . . . Retrieved Matter . | . . . . . . . . Parts Self-Destructed . | . . . . . . . . Prevented . | . . . . . . . . Kills | -11 -10 -9 -9 -8 -7 -7 -7 ------- Run | Yrd Mat Mat Min Mat Fac Gar Fac Combat Hostiles Destroyed 44 | . 4 10 2 14 10 3 1 Guns 35 | . 4 10 2 11 4 3 1 Cannons 1 | . . . . 1 . . . AOE 7 | . . . . 2 5 . . Classes Destroyed 13 | . 1 5 . 6 1 . . Worker 6 | . . 4 . 1 1 . . Builder 2 | . . . . 2 . . . Hauler 1 | . . 1 . . . . . Recycler 2 | . . . . 2 . . . Operator 1 | . . . . 1 . . . Watcher 7 | . . 2 . 5 . . . Swarmer 9 | . . 2 . 2 2 3 . Grunt 17 | . 4 5 . 3 5 . . Brawler 1 | . . . . 1 . . . Duelist 1 | . . . . 1 . . . Sentry 11 | . . 3 2 5 1 . . Hunter 2 | . . . . 2 . . . Programmer 3 | . . . . . 2 . 1 Best Kill Streak 6 | . 2 4 2 5 6 3 1 Combat Bots Only 5 | . 2 3 2 2 5 3 1 Max Kills in Single Turn 2 | . 1 2 1 2 1 1 1 Gunslinging 1 | . . 1 . . . . . Exploded 1 | . . . . 1 1 . . Melee . | . . . . . . . . Uniques/NPCs Destroyed . | . . . . . . . . Combat | -11 -10 -9 -9 -8 -7 -7 -7 -------- Run | Yrd Mat Mat Min Mat Fac Gar Fac Hostile Shots Fired 477 | . 31 106 12 41 113 94 80 Missed 149 | . 7 38 2 10 37 25 30 Damage Taken 4815 | . 275 900 149 610 1024 1064 793 Core 1164 | . 85 210 46 90 132 165 436 Absorbed by Shields . | . . . . . . . . Regen/Repaired (Parts) 89 | . . . . . 89 . . Core Remaining (%) 71 | 100 66 . 36 83 . . . Volleys Fired 125 | . 17 37 4 37 20 6 4 Largest 4 | . 2 3 3 4 3 2 1 Hottest 219 | . 70 183 107 219 130 75 80 Shots Fired 323 | . 34 73 12 139 54 7 4 Gun 287 | . 34 73 12 112 47 7 2 Cannon 18 | . . . . 18 . . . Launcher 16 | . . . . 9 7 . . Special 2 | . . . . . . . 2 Kinetic 71 | . 17 4 8 41 . 1 . Thermal 205 | . 17 69 4 89 19 5 2 Explosive 16 | . . . . 9 7 . . Electromagnetic 29 | . . . . . 28 1 . Robot Hit Streak 17 | . 4 12 17 10 5 5 4 Robot Miss Streak 4 | . 3 2 1 4 2 1 2 Penetration Max . | . . . . . . . . Secondary Targets 2 | . . 2 . . . . . Max Gunslinging Chain 1 | . . 1 . . . . . Shots Hit Robots 201 | . 17 46 9 84 36 5 4 Core Hits 111 | . 9 21 3 46 24 3 5 Critical Kills . | . . . . . . . . Critical Parts Destroyed 1 | . . . . 1 . . . Critical Strikes 17 | . . 8 . 7 2 . . Burn 15 | . . 8 . 6 1 . . Destroy 1 | . . . . 1 . . . Corrupt 1 | . . . . . 1 . . Melee Attacks . | . . . . . . . . Impact . | . . . . . . . . Slashing . | . . . . . . . . Piercing . | . . . . . . . . Sneak Attacks . | . . . . . . . . Combat Hostiles . | . . . . . . . . Follow-up Attacks . | . . . . . . . . Damage Inflicted 4279 | . 194 837 139 1844 1103 97 65 Guns 3035 | . 194 837 139 1200 516 97 52 Cannons 255 | . . . . 255 . . . Explosions 976 | . . . . 389 587 . . Melee . | . . . . . . . . Ramming 13 | . . . . . . . 13 Kinetic 546 | . 67 34 104 341 . . . Thermal 2456 | . 127 803 35 1114 228 97 52 Explosive 976 | . . . . 389 587 . . Electromagnetic 288 | . . . . . 288 . . Impact . | . . . . . . . . Slashing . | . . . . . . . . Piercing . | . . . . . . . . Highest Corruption 7 | . . . . 7 . . 7 Average Corruption 6 | . . . . 6 . . 5 Corruption Purged . | . . . . . . . . Corruption Blocked . | . . . . . . . . Effects 21 | . . . . 15 . . 6 Message Errors 5 | . . . . 4 . . 1 Matter Fused 2 | . . . . 1 . . 1 Heat Flow Errors 4 | . . . . 2 . . 2 Energy Discharges 1 | . . . . 1 . . . Parts Rejected 1 | . . . . . . . 1 Parts Fused 1 | . . . . 1 . . . Data Loss (minor) 2 | . . . . 1 . . 1 Misfires 3 | . . . . 3 . . . Alerts 1 | . . . . 1 . . . Weapon Failures 1 | . . . . 1 . . . Overload Shots 3 | . . . . 3 . . . Overflow Damage 51 | . . . . 27 24 . . Projectiles . | . . . . . . . . Explosions 51 | . . . . 27 24 . . Melee . | . . . . . . . . Knockbacks . | . . . . . . . . Impact . | . . . . . . . . Kinetic . | . . . . . . . . Secondary . | . . . . . . . . Self-Inflicted Damage 51 | . . . . 45 . . 6 Shots 1 | . . . . 1 . . . Rammed 4 | . . . . . . . 4 Targets Rammed 4 | . . . . . . . 4 Kicked . | . . . . . . . . Crushed . | . . . . . . . . Highest Temperature 648 | . 148 517 72 648 242 36 230 Average Temperature 122 | . 56 145 34 141 88 11 88 Received Heat Transfer 1047 | . 114 186 54 135 189 207 162 Effects 22 | . . 11 . 10 . . 1 Shutdowns 6 | . . 4 . 2 . . . Energy Bleed 3 | . . . . 2 . . 1 Interference 6 | . . 5 . 1 . . . Matter Decay 3 | . . 1 . 2 . . . Damage (minor) 4 | . . 1 . 3 . . . Siege Activations . | . . . . . . . . Robots Corrupted 1 | . . . . . 1 . . Combat Hostiles 1 | . . . . . 1 . . Parts Fried 1 | . . . . . 1 . . Impact Corruptions . | . . . . . . . . Robots Melted . | . . . . . . . . Combat Hostiles . | . . . . . . . . Parts Melted 13 | . . 6 . 4 3 . . Heat Transferred 6163 | . 370 2331 74 2622 481 185 100 Parts Sabotaged . | . . . . . . . . Parts Stolen . | . . . . . . . . Parts Stripped . | . . . . . . . . Power Chain Reactions . | . . . . . . . . Alert | -11 -10 -9 -9 -8 -7 -7 -7 ------- Run | Yrd Mat Mat Min Mat Fac Gar Fac Peak Influence 401 | . 111 325 110 401 284 210 138 Initial 114 | . . 46 54 42 114 95 94 Average 149 | . 33 204 104 173 150 144 105 Maximum Alert Level 2 | . . 1 . 2 1 1 . Low Security (%) 71 | 100 100 50 100 59 69 89 100 Level 1 26 | . . 49 . 33 30 10 . Level 2 2 | . . . . 7 . . . Level 3 . | . . . . . . . . Level 4 . | . . . . . . . . Level 5 . | . . . . . . . . High Security . | . . . . . . . . Max Security . | . . . . . . . . Squads Dispatched 11 | . 3 1 . 4 2 . 1 Investigation 2 | . . . . 1 . . 1 Extermination 1 | . . . . . 1 . . Reinforcement 5 | . 3 1 . . 1 . . Assault . | . . . . . . . . Garrison 3 | . . . . 3 . . . Intercept . | . . . . . . . . Searches Triggered . | . . . . . . . . Construction Impeded . | . . . . . . . . Haulers Reinforced 1 | . . . . . 1 . . Active Scanning Responses . | . . . . . . . . Cargo Convoy Interrupts . | . . . . . . . . Stealth | -11 -10 -9 -9 -8 -7 -7 -7 --------- Run | Yrd Mat Mat Min Mat Fac Gar Fac Distress Signals 8 | . . 2 . 3 3 . . Communications Jammed . | . . . . . . . . Distress Signals . | . . . . . . . . Times Spotted 94 | . 11 17 2 22 16 20 6 Peak Tracking Total 14 | . 4 5 2 4 6 14 3 Tactical Retreats 7 | . . . . 2 2 2 1 Traps | -11 -10 -9 -9 -8 -7 -7 -7 ------- Run | Yrd Mat Mat Min Mat Fac Gar Fac Traps Triggered 4 | . 1 2 . . . 1 . Indirectly . | . . . . . . . . Trap Hack Attempts . | . . . . . . . . Triggered . | . . . . . . . . Disarmed . | . . . . . . . . Reprogrammed . | . . . . . . . . Reused . | . . . . . . . . Traps Extracted . | . . . . . . . . Installed . | . . . . . . . . Triggered . | . . . . . . . . Machines | -11 -10 -9 -9 -8 -7 -7 -7 ---------- Run | Yrd Mat Mat Min Mat Fac Gar Fac Machines Disabled 4 | . . 2 1 1 . . . Max in Single Turn 1 | . . 1 1 1 . . . Machines Repaired . | . . . . . . . . Machines Dismantled . | . . . . . . . . Machines Sabotaged . | . . . . . . . . Overloaded Fab Kills . | . . . . . . . . Hacking | -11 -10 -9 -9 -8 -7 -7 -7 --------- Run | Yrd Mat Mat Min Mat Fac Gar Fac Machines Accessed 19 | . 2 1 . 6 7 . 3 Terminals 14 | . 1 1 . 5 5 . 2 Fabricators . | . . . . . . . . Repair Stations 1 | . . . . . 1 . . Recycling Units 2 | . 1 . . 1 . . . Scanalyzers 1 | . . . . . . . 1 Garrison Access 1 | . . . . . 1 . . Total Hacks 52 | . 4 4 . 16 18 . 10 Successful 31 | . 2 2 . 8 11 . 8 Failed 21 | . 2 2 . 8 7 . 2 Catastrophic 3 | . . . . 2 1 . . Database Lockouts . | . . . . . . . . Manual 2 | . . . . 1 . . 1 Terminals 40 | . 3 4 . 12 15 . 6 Fabricators . | . . . . . . . . Repair Stations 2 | . . . . . 2 . . Recycling Units 5 | . 1 . . 4 . . . Scanalyzers 4 | . . . . . . . 4 Garrison Access 1 | . . . . . 1 . . Terminal Hacks 21 | . 1 2 . 6 8 . 4 Record 6 | . . 2 . . 2 . 2 Prototype ID Bank 2 | . . . . . 1 . 1 Open DSF 1 | . . . . . 1 . . Branch Access Points 1 | . . . . 1 . . . Emergency Access Points 1 | . . . . 1 . . . Alert Level 5 | . . . . 2 3 . . Unreport Threat 2 | . . . . 1 1 . . Dispatch Records 1 | . . . . . . . 1 Registered Components 1 | . 1 . . . . . . Zone Layout 1 | . . . . 1 . . . Fabricator Hacks . | . . . . . . . . Repair Station Hacks 2 | . . . . . 2 . . Scan Component 1 | . . . . . 1 . . Repair 1 | . . . . . 1 . . Recycling Unit Hacks 3 | . 1 . . 2 . . . Report Inventory 2 | . 1 . . 1 . . . Retrieve Components 1 | . . . . 1 . . . Scanalyzer 4 | . . . . . . . 4 Insert Component 2 | . . . . . . . 2 Analyze 2 | . . . . . . . 2 Garrison Access Hacks 1 | . . . . . 1 . . Unlock Access 1 | . . . . . 1 . . Unauthorized Hacks . | . . . . . . . . Terminals . | . . . . . . . . Fabricators . | . . . . . . . . Repair Stations . | . . . . . . . . Recycling Units . | . . . . . . . . Scanalyzers . | . . . . . . . . Garrison Access . | . . . . . . . . Data Cores Recovered 1 | . . . . 1 . . . Used . | . . . . . . . . Hacking Detections 16 | . 1 1 . 5 7 . 2 Full Trace Events 3 | . 1 . . 1 . . 1 Feedback Events . | . . . . . . . . Feedback Blocked . | . . . . . . . . Robot Schematics Acquired . | . . . . . . . . Robots Built . | . . . . . . . . Authchips . | . . . . . . . . Time . | . . . . . . . . Total Robot Build Rating . | . . . . . . . . Part Schematics Acquired 1 | . . . . . . . 1 Parts Built . | . . . . . . . . Authchips . | . . . . . . . . Time . | . . . . . . . . Total Part Build Rating . | . . . . . . . . Parts Repaired 1 | . . . . . 1 . . Time 70 | . . . . . 70 . . Parts Recycled . | . . . . . . . . Recycled Matter . | . . . . . . . . Retrieved Matter . | . . . . . . . . Retrieved Components 9 | . . . . 9 . . . Parts Scanalyzed 1 | . . . . . . . 1 Part Schematics Acquired 1 | . . . . . . . 1 Parts Damaged . | . . . . . . . . Bothacking | -11 -10 -9 -9 -8 -7 -7 -7 ------------ Run | Yrd Mat Mat Min Mat Fac Gar Fac Used RIF Installer 1 | . . . . . . 1 . Robots Hacked 1 | . . . . . . . 1 Non-combat . | . . . . . . . . Combat 1 | . . . . . . . 1 Robot Hacks Applied 1 | . . . . . . . 1 parse_system 1 | . . . . . . . 1 Relay Couplers Released . | . . . . . . . . Fabnet Peak Effective % . | . . . . . . . . Robots Rewired . | . . . . . . . . Allies Hacked . | . . . . . . . . Hacks Repelled . | . . . . . . . . Allies | -11 -10 -9 -9 -8 -7 -7 -7 -------- Run | Yrd Mat Mat Min Mat Fac Gar Fac Total Allies . | . . . . . . . . Largest Group . | . . . . . . . . Highest-Rated Group . | . . . . . . . . Highest-Rated Ally . | . . . . . . . . Total Orders . | . . . . . . . . Ally Attacks . | . . . . . . . . Total Damage . | . . . . . . . . Kills . | . . . . . . . . Allies Corrupted . | . . . . . . . . Allies Melted . | . . . . . . . . Intel | -11 -10 -9 -9 -8 -7 -7 -7 ------- Run | Yrd Mat Mat Min Mat Fac Gar Fac Robot Analysis Total . | . . . . . . . . Derelict Logs Recovered . | . . . . . . . . Drone Launches . | . . . . . . . . Drone Recoveries . | . . . . . . . . Exploration | -11 -10 -9 -9 -8 -7 -7 -7 ------------- Run | Yrd Mat Mat Min Mat Fac Gar Fac Turns Passed 2740 | 34 185 474 113 810 692 132 300 Spaces Moved 1954 | 31 142 270 90 616 505 112 188 Core 76 | 7 . 3 . . . . 66 Treads 19 | . . 19 . . . . . Legs 129 | . . . . 1 128 . . Wheels 1729 | 24 142 247 90 615 377 112 122 Hover 1 | . . 1 . . . . . Flight . | . . . . . . . . Fastest Speed 50 | 50 90 80 95 95 90 100 50 Average Speed 100 | 77 90 96 95 100 100 100 115 Slowest Speed 360 | 90 100 250 95 190 360 100 300 Overloaded Moves . | . . . . . . . . Propulsion Burnouts . | . . . . . . . . Robots Hopped . | . . . . . . . . Cave-ins Triggered . | . . . . . . . . Exploration Rate (%) 22 | 4 33 21 22 52 12 30 5 Regions Visited 7 Branch Regions 1 Pre-discovered Areas . | . . . . . . . . Known Exits Taken 1 | . . . . . 1 . . Unknown Exits Taken 5 | 1 1 1 1 1 . . . Scrap Searched . | . . . . . . . . Spaces Dug . | . . . . . . . . Terrain Destroyed 170 | . . 12 . 122 36 . . Melee . | . . . . . . . . Projectile 7 | . . . . 7 . . . AOE 163 | . . 12 . 115 36 . . Terrain Rammed . | . . . . . . . . Walls Destroyed . | . . . . . . . . Machines Disabled . | . . . . . . . . Actions | -11 -10 -9 -9 -8 -7 -7 -7 --------- Run | Yrd Mat Mat Min Mat Fac Gar Fac Total 2485 | 40 167 417 107 720 648 123 263 Wait 212 | . 1 60 10 14 80 1 46 Move 1948 | 30 141 269 89 615 505 111 188 Hop . | . . . . . . . . Pick Up 48 | 5 6 13 2 12 5 . 5 Fast Attach 23 | . . 5 . 3 12 2 1 Attach 31 | 5 2 11 1 4 1 1 6 Detach 3 | . . . . . . . 3 Swap 41 | . . 10 1 18 7 2 3 Drop 51 | . . 12 . 17 18 . 4 Fire 125 | . 17 37 4 37 20 6 4 Melee . | . . . . . . . . Ram 3 | . . . . . . . 3 Kick . | . . . . . . . . Crush . | . . . . . . . . Escape Stasis . | . . . . . . . . Rewire . | . . . . . . . . Trap . | . . . . . . . . Miscellaneous . | . . . . . . . . Route ------- -11/Scrapyard -10/Materials -9/Materials -9/Mines -8/Materials -7/Factory -7/Garrison -7/Factory History --------- Turn | Location | Event 23 | -11/Scrapyard | Discovered new exit (range 14) 35 | -11/Scrapyard | Entered Materials 206 | -10/Materials | Discovered new exit (range 15) 220 | -10/Materials | Entered another Materials area 220 | -9/Materials | Evolved 2 slots: Power x1, Weapon x1 324 | -9/Materials | Discovered new exit (range 14) 557 | -9/Materials | Lost 4 parts (1p1n2w) 658 | -9/Materials | Core integrity fell below 50% 694 | -9/Materials | Entered Mines 733 | -9/Mines | Discovered new exit (range 13) 807 | -9/Mines | Entered Materials 807 | -8/Materials | Evolved 2 slots: Utility x1, Weapon x1 1093 | -8/Materials | Garrison activated, responded to threat 1100 | -8/Materials | Build established: Scavenger-Gunner 1609 | -8/Materials | Discovered new exit (range 7) 1617 | -8/Materials | Entered Factory 1617 | -7/Factory | Evolved 2 slots: Propulsion x2 1932 | -7/Factory | Build established: Gunner 2151 | -7/Factory | Repaired Cld. Pulse Rifle 2248 | -7/Factory | Build established: Mutant 2309 | -7/Factory | Identified exit to Garrison 2309 | -7/Factory | Entered Garrison 2320 | -7/Garrison | Installed Relay Interface Framework 2349 | -7/Garrison | Triggered checkpoint 2391 | -7/Garrison | Triggered checkpoint 2395 | -7/Garrison | Triggered checkpoint 2401 | -7/Garrison | Triggered checkpoint 2432 | -7/Garrison | Discovered new exit (range 10) 2441 | -7/Garrison | Entered Factory 2465 | -7/Factory | Lost 4 parts (1u3w) 2622 | -7/Factory | Core integrity fell below 50% 2661 | -7/Factory | Lost 4 parts (2p2n) 2676 | -7/Factory | Core integrity fell below 20% 2741 | -7/Factory | Core destroyed Last Messages --------------- ALERT: Suspicious activity at Terminal F016. Dispatching Investigation squad. P-60 Hacker destroyed. Acquired Remote Datajack. Remote Datajacks cannot fire with other weapons in the same volley. Jacked G-47 Trooper... Right-click on available options for more info. Keyboard players can use Shift-a~z. >>parse_system Reading system data... System corrupted: Heat flow error (+286). Jacked G-47 Trooper... Overheating: Energy bleed (-3). Acquired 50 matter. Acquired Gravmag System. System corrupted: Heat flow error (+113). Dropped Gravmag System. Slammed into G-47 Trooper. Destabilizing: Core damaged (-35). Map ----- +----------------------------------------------------+ | | | | | | | | | ?????????????????????????????????????? | | ?????????????????????????????????????? | | ?????????????????????????????????????? | | ?????????????????????????????????????? | | ?????????????????????????????????????? | | ?????????????????????????????????????? | | ?????????????????????????????????????? | | ?????????????????????????????????????? | | ?????????????????????????????????????? | | ?????????????????????????????????????? | | ?????????????????????????????????????? | | ?????????????????????????????????????? | | ?????????????????????????????????????? | | ????????????????????########?????????? | | ????????????????????# ?????????? | | ????????????????????# ! """????????? | | ????????????????????# """"???????? | | ????????????????????# """"######## | | ????????????????????# """"# # | | ????????????????????# """"# ! "# | | ????????????????????# """"# ""# | | ????????????????????# =@ # " ""# | | ???????????????###########g####*" ""# | | ???????????? # " ""# | | ???????????? # " T"# | | ???????????? + " ""# | | ????????????? # " ""# | | ????????????? # " ""# | | ????????????? # "[ ""# | | ????????????? # " [ "# | | ??????????????############### # !! # | | ????????????????????????????# # # | | ????????????????????????????# ######## | | ???????????????????????????## ##?????? | | ????????????????????????#### #?????? | | ????????????????????????# #?????? | | ????????????????????????# #?????? | | ????????????????????##### ######???? | | ????????????????????+ #???? | | ????????????????????#####/##### #???? | | ?????????????????????# ????# #???? | | ?????????????????????# ???# #???? | | ?????????????????????# ???# #???? | | ?????????????????????#[[[ ???# #???? | | ?????????????????????#[[[ ??# #???? | | ?????????????????????#[?[ ??# #???? | +----------------------------------------------------+ Best States ------------- Heat Dissipation 61 Energy Generation 29 Energy Capacity 500 Matter Stores 300 Matter Capacity 300 Sight Range 16 Robot Scan Range 14 Terrain Scan Density 10 ECM Strength 2 Armor Coverage 150 Evasion (%) 57 Targeting Accuracy 6 Recoil Reduction 1 Offensive Hacking 10 Item Schematics ----------------- Arm. Huge Wheel | -7/Factory | Scanalyzed Robot Schematics ------------------ None Fabricated ------------ Nothing Alien Tech Used ----------------- None Achievements -------------- None Challenges ------------ None Game ------ Seed CoreSingularityBallwheel Manual? 0 Play Time 00:53:37 Cumulative 25.5 hours Start 2024.10.10 @ 16:16:02 End 2024.10.10 @ 17:09:58 Sessions 1 Manual Loads 0 Difficulty Rogue Special Mode None Game No. 12 Rogue 5 Adventurer 7 Explorer 0 Win Type - Total 0 Types 0/0/0/0/0/0/0/0/0 Lore% 8 Gallery% 23 Achievement% 22 Wizard Run 0 Options --------- Layout 1 ASCII 0 Keyboard 0 Movement Mouse Keybinds 0 Fullscreen 1 Font 32/SmallcapsGlow Map View 50x40 Zoom Use 0% Tactical HUD 0 Map Filters NONE Filters NONE Steam 0 RUN: 7b853310-41a3-4ab6-b756-56ad30f901bd